bitfinex-derivatives/quotes_SOLF0:USTF0_20260202
["timestamp","ask_amount","ask_price","bid_price","bid_amount"]
[1770036540983,39.35670649,103.09,103.05,8.7427]
[1770036541179,36.34588272,103.09,103.05,8.7427]
[1770036541580,36.34588272,103.09,103.05,41.96955101]
[1770036541781,36.34588272,103.09,103.05,8.7427]
[1770036543685,8.7378,103.11,103.05,8.7427]
[1770036543686,36.34588272,103.11,103.06,33.22685101]
[1770036543887,36.34588272,103.11,103.06,51.30626334]
[1770036545288,36.34588272,103.11,103.07,8.7404]
[1770036549081,36.34588272,103.11,103.07,26.81981233]
[1770036549488,36.34588272,103.11,103.07,8.7404]
[1770036549688,36.34588272,103.11,103.07,26.81981233]
[1770036549889,36.34588272,103.11,103.07,8.7404]
[1770036550783,36.34588272,103.11,103.06,60.04806334]
[1770036550990,32.04264997,103.09,103.06,26.82121233]
[1770036551189,32.04264997,103.09,103.06,8.7418]
[1770036551392,32.04264997,103.09,103.05,18.07941233]
[1770036551393,35.05507077,103.09,103.05,18.07941233]
[1770036552490,35.05507077,103.09,103.04,62.10798488]
[1770036553192,35.05507077,103.11,103.05,53.36488488]
[1770036553692,35.05507077,103.1,103.06,18.07941233]
[1770036553885,35.05507077,103.1,103.05,53.36488488]
[1770036554291,35.05507077,103.1,103.06,8.7418]
[1770036554995,35.05507077,103.1,103.05,53.36488488]
[1770036555489,35.05507077,103.09,103.05,18.07941233]
[1770036556796,35.05507077,103.09,103.04,26.82231233]
[1770036557295,35.05507077,103.11,103.05,62.10748488]
[1770036557492,35.05507077,103.11,103.06,53.36488488]
[1770036557693,35.05507077,103.11,103.06,18.07941233]
[1770036558490,35.05507077,103.11,103.06,8.7418]
[1770036561194,32.04264997,103.09,103.05,8.7427]
[1770036561497,35.05507077,103.09,103.05,8.7427]
[1770036562793,3.0124208,103.1,103.05,44.02817255]
[1770036563291,35.05507077,103.1,103.05,44.02817255]
[1770036564188,35.05507077,103.09,103.04,8.7435]
[1770036564793,32.04264997,103.09,103.04,44.02897255]
[1770036564999,32.04264997,103.09,103.05,8.7426]
[1770036565297,35.05507077,103.09,103.05,8.7426]
[1770036565998,35.05507077,103.09,103.04,44.02897255]
[1770036566797,35.05507077,103.09,103.05,8.7427]
[1770036568902,32.04264997,103.09,103.05,8.7427]
[1770036572405,35.05507077,103.09,103.05,8.7427]
[1770036572607,32.04264997,103.09,103.05,44.02817255]
[1770036576606,35.05507077,103.09,103.05,44.02817255]
[1770036578104,32.04264997,103.09,103.05,44.02817255]
[1770036579406,35.05507077,103.09,103.04,8.7435]
[1770036579610,30.90626571,103.07,103.04,8.7435]
[1770036579806,30.90626571,103.07,103.03,33.75777003]
[1770036580011,33.91868651,103.07,103.02,8.7446]
[1770036581809,30.90626571,103.07,103.02,42.50237003]
[1770036583110,30.90626571,103.07,103.03,42.50207003]
[1770036584013,30.90626571,103.07,103.04,8.7435]
[1770036585121,39.64486571,103.1,103.04,42.50127003]
[1770036585314,42.65728651,103.1,103.04,42.50127003]
[1770036585514,30.90626571,103.09,103.04,42.50127003]
[1770036586518,33.91868651,103.09,103.04,42.50127003]
[1770036587820,33.91868651,103.08,103.03,8.7444]
[1770036588115,33.91868651,103.07,103.03,8.7444]
[1770036588319,33.91868651,103.06,103.01,381.96489703]
[1770036589420,33.91868651,103.06,103.02,8.7452]
[1770036589716,30.90626571,103.06,103.02,40.70813368]
[1770036589916,34.37781187,103.07,103.02,31.96293368]
[1770036591318,31.36539107,103.07,103.03,8.7443]
[1770036591616,3.0124208,103.07,103.03,31.96293368]
[1770036592117,3.0124208,103.07,103.03,8.7444]
[1770036592118,34.37781187,103.07,103.03,8.7444]
[1770036592318,34.37781187,103.07,103.01,413.92783071]
[1770036592516,31.36539107,103.06,103.01,413.92783071]
[1770036592711,34.37781187,103.06,103.01,413.92783071]
[1770036593419,34.37781187,103.06,103.01,422.67393071]
[1770036598116,31.36539107,103.06,103.01,422.67393071]
[1770036598616,3.0124208,103.07,103.03,31.96293368]
[1770036598824,31.36539107,103.08,103.03,31.96293368]
[1770036599921,34.37781187,103.08,103.03,40.70723368]
[1770036600418,3.0124208,103.06,103.01,413.92783071]
[1770036600825,34.37781187,103.09,103.03,31.96293368]
[1770036601322,34.37781187,103.09,103.03,40.70653368]
[1770036601925,34.37781187,103.08,103.03,40.70653368]
[1770036603123,34.37781187,103.07,103.03,31.96293368]
[1770036603325,34.37781187,103.07,103.02,8.7452]
[1770036603826,34.37781187,103.07,103.02,40.70813368]
[1770036605827,3.0124208,103.06,103.02,40.70813368]
[1770036606024,34.37781187,103.07,103.02,40.70813368]
[1770036607319,34.37781187,103.07,103.03,8.7444]
[1770036607524,31.36539107,103.07,103.03,8.7444]
[1770036607721,3.0124208,103.08,103.03,40.70733368]
[1770036607926,43.11731187,103.09,103.04,30.63684233]
[1770036608623,43.11924478,103.09,103.04,39.38044233]
[1770036609131,3.01435371,103.1,103.05,30.63684233]
[1770036609431,33.55761065,103.11,103.05,30.63684233]
[1770036611130,33.55761065,103.11,103.06,8.7411]
[1770036614728,30.54325694,103.11,103.06,8.7411]
[1770036617139,33.55761065,103.11,103.06,8.7411]
[1770036620041,33.55761065,103.11,103.05,39.37954233]
[1770036622541,30.54325694,103.11,103.06,8.7417]
[1770036624543,33.55761065,103.11,103.06,8.7417]
[1770036625242,33.55761065,103.08,103.01,33.65119604]
[1770036625538,33.55761065,103.07,103.01,30.63684233]
[1770036625739,33.55761065,103.06,103.01,39.38294233]
[1770036626045,30.54325694,103.06,103.01,30.63684233]
[1770036627447,30.54325694,103.06,103.02,8.7452]
[1770036628644,30.54325694,103.06,103.01,30.63684233]
[1770036628645,33.55761065,103.06,103.01,30.63684233]
[1770036630449,33.55761065,103.05,103.01,30.63684233]
[1770036630641,33.55761065,103.04,102.99,30.63684233]
[1770036632450,33.55761065,103.04,102.99,39.38454233]
[1770036633746,3.01435371,103.03,102.99,39.38454233]
[1770036634546,33.55761065,103.02,102.97,39.38564233]
[1770036635238,33.55761065,103.04,102.99,30.63684233]
[1770036636046,3.01435371,103.03,102.99,30.63684233]
[1770036636447,33.55761065,103.04,102.99,39.38434233]
[1770036637247,33.55761065,103.04,103.0,8.7469]
[1770036637454,30.54325694,103.04,103.0,39.38374233]
[1770036637754,33.55761065,103.04,103.0,39.38374233]
[1770036637947,33.55761065,103.04,103.0,30.63684233]
[1770036638451,3.01435371,103.05,103.0,39.38384233]
[1770036638652,34.64123109,103.05,103.0,39.38384233]
[1770036639353,3.01435371,103.04,103.0,39.38384233]
[1770036639751,34.64123109,103.04,103.0,39.38384233]
[1770036640552,34.64123109,103.04,103.0,30.63684233]
[1770036640755,3.01435371,103.05,103.01,40.83379304]
[1770036641153,34.64123109,103.06,103.01,40.83379304]
[1770036641354,3.01435371,103.07,103.02,40.83289304]
[1770036641553,34.64123109,103.08,103.02,32.08779304]
[1770036642549,34.64123109,103.08,103.03,8.7443]
[1770036643252,34.64123109,103.07,103.0,32.08779304]
[1770036643449,34.64123109,103.05,103.0,32.08779304]
[1770036643651,3.01435371,103.07,103.01,32.08779304]
[1770036643858,34.64123109,103.07,103.01,32.08779304]
[1770036644653,3.01435371,103.06,103.02,8.7452]
[1770036648061,3.01435371,103.06,103.02,40.83299304]
[1770036648860,34.64123109,103.07,103.02,40.83299304]
[1770036649058,34.64123109,103.07,103.03,8.7442]
[1770036649257,32.78870652,103.09,103.03,30.42686537]
[1770036650463,32.78870652,103.09,103.04,8.7436]
[1770036651968,32.78870652,103.09,103.05,8.7427]
[1770036651969,29.77435281,103.09,103.05,8.7427]
[1770036655267,29.77435281,103.11,103.06,8.7417]
[1770036656767,32.78870652,103.11,103.06,8.7417]
[1770036656963,32.78870652,103.1,103.06,8.7417]
[1770036657769,29.77435281,103.1,103.06,8.7417]
[1770036660072,32.78870652,103.1,103.06,8.7417]
[1770036660273,3.01435371,103.12,103.06,30.42686537]
[1770036660570,3.01435371,103.15,103.07,33.44121908]
[1770036660873,3.01435371,103.15,103.08,33.44121908]
[1770036661169,3.01435371,103.14,103.08,30.42686537]
[1770036661370,3.01435371,103.13,103.07,8.7403]
[1770036661570,400.8149,103.16,103.06,30.42686537]
[1770036661571,3.01435371,103.12,103.06,30.42686537]
[1770036661871,3.01435371,103.1,103.04,166.43766537]
[1770036662265,3.01435371,103.1,103.05,30.42686537]
[1770036663075,3.01435371,103.1,103.05,39.16886537]
[1770036663369,3.01435371,103.1,103.03,390.17435371]
[1770036663370,32.78870652,103.08,103.03,30.42686537]
[1770036663569,3.01435371,103.07,103.02,398.88836098]
[1770036664374,3.01435371,103.07,103.02,407.63366098]
[1770036665674,3.01435371,103.07,103.03,30.42686537]
[1770036665868,32.78870652,103.08,103.03,30.42686537]
[1770036666582,3.01435371,103.09,103.04,30.42686537]
[1770036667073,32.78870652,103.09,103.04,30.42686537]
[1770036667278,32.78870652,103.08,103.03,8.7444]
[1770036667676,32.78870652,103.08,103.02,407.63366098]
[1770036669683,32.78870652,103.08,103.03,30.30753615]
[1770036669876,3.01435371,103.09,103.03,39.05153615]
[1770036670081,3.01435371,103.09,103.04,30.30753615]
[1770036670283,32.10813749,103.09,103.04,30.30753615]
[1770036670576,32.10790708,103.09,103.04,30.30753615]
[1770036670983,32.10790708,103.09,103.04,39.05113615]
[1770036671384,3.0141233,103.1,103.05,30.30753615]
[1770036671786,3.0141233,103.1,103.05,39.05013615]
[1770036672283,32.10790708,103.1,103.05,30.30753615]
[1770036672487,3.0141233,103.09,103.05,30.30753615]
[1770036673389,37.83148378,103.11,103.05,39.05003615]
[1770036673584,3.0141233,103.1,103.05,39.05003615]
[1770036673788,32.10790708,103.11,103.06,30.30753615]
[1770036674081,3.0141233,103.12,103.06,30.30753615]
[1770036674389,40.84470708,103.13,103.06,33.32165945]
[1770036674783,3.0141233,103.12,103.06,30.30753615]
[1770036674983,32.10790708,103.11,103.06,30.30753615]
[1770036677693,32.10790708,103.11,103.05,8.7427]
[1770036677694,3.0141233,103.12,103.07,30.30753615]
[1770036677892,32.10790708,103.13,103.07,30.30753615]
[1770036678390,3.0141233,103.12,103.07,30.30753615]
[1770036679386,3.0141233,103.12,103.08,8.7401]
[1770036679994,3.0141233,103.13,103.09,30.30753615]
[1770036680292,3.0141233,103.14,103.09,39.04683615]
[1770036680692,32.10790708,103.13,103.08,26.78199694]
[1770036680891,3.0141233,103.12,103.07,30.30753615]
[1770036681283,3.0141233,103.12,103.08,8.7402]
[1770036681490,32.10790708,103.13,103.08,8.7402]
[1770036681693,32.10790708,103.13,103.08,39.04773615]
[1770036682689,3.0141233,103.13,103.08,39.04773615]
[1770036682895,3.0141233,103.14,103.09,39.04683615]
[1770036683697,3.0141233,103.14,103.1,8.7384]
[1770036683891,410.50790708,103.15,103.1,8.7384]
[1770036684296,32.10790708,103.14,103.09,39.04683615]
[1770036684497,3.0141233,103.13,103.09,39.04683615]
[1770036685998,32.10790708,103.14,103.09,39.04683615]
[1770036686190,3.0141233,103.14,103.1,30.30753615]
[1770036688100,40.84240708,103.15,103.1,30.30753615]
[1770036689195,3.0141233,103.15,103.11,30.30753615]
[1770036689404,3.0141233,103.16,103.11,30.30753615]
[1770036690299,3.0141233,103.17,103.11,30.30753615]
[1770036690601,32.10790708,103.18,103.11,30.30753615]
[1770036690901,32.10790708,103.18,103.13,30.30753615]
[1770036691600,32.10790708,103.18,103.13,39.04343615]
[1770036693693,29.09378378,103.18,103.13,39.04343615]
[1770036694002,32.10790708,103.18,103.13,39.04343615]
[1770036695804,11.7452233,103.19,103.14,30.30753615]
[1770036696003,3.0141233,103.19,103.14,39.04263615]
[1770036696200,32.10790708,103.19,103.14,30.30753615]
[1770036696396,3.0141233,103.18,103.14,30.30753615]
[1770036696603,32.10790708,103.16,103.1,30.30753615]
[1770036697203,3.0141233,103.16,103.1,30.30753615]
[1770036697401,3.0141233,103.16,103.11,8.7376]
[1770036697605,3.0141233,103.16,103.12,30.30753615]
[1770036698206,38.30255674,103.17,103.12,30.30753615]
[1770036698401,3.0141233,103.16,103.12,30.30753615]
[1770036700703,3.0141233,103.18,103.13,29.22601329]
[1770036701006,32.58408004,103.19,103.13,29.22601329]
[1770036701704,3.0141233,103.17,103.13,29.22601329]
[1770036702099,11.7485233,103.15,103.1,29.22601329]
[1770036702303,3.0141233,103.14,103.1,29.22601329]
[1770036703506,8.7344,103.15,103.07,37.96631329]
[1770036703507,32.58408004,103.12,103.07,37.96631329]
[1770036703708,3.0141233,103.12,103.08,29.22601329]
[1770036707710,11.7501233,103.13,103.08,29.22601329]
[1770036710817,3.0141233,103.13,103.08,37.96611329]
[1770036711103,3.0141233,103.14,103.08,29.22601329]
[1770036711309,11.7492233,103.15,103.08,32.24013659]
[1770036712312,11.7492233,103.15,103.09,8.7386]
[1770036712509,11.7492233,103.15,103.1,30.62813433]
[1770036713705,3.0141233,103.14,103.1,30.62813433]
[1770036716718,3.0141233,103.15,103.1,39.36663433]
[1770036717810,3.0141233,103.14,103.1,39.36663433]
[1770036718215,3.0141233,103.15,103.1,39.36663433]
[1770036718412,33.66073085,103.16,103.12,30.62813433]
[1770036718617,3.0141233,103.16,103.12,30.62813433]
[1770036719317,3.0141233,103.17,103.13,30.62813433]
[1770036721215,3.0141233,103.18,103.13,39.36393433]
[1770036721419,3.0141233,103.18,103.14,30.62813433]
[1770036721622,3.0141233,103.19,103.14,30.62813433]
[1770036722309,3.0141233,103.17,103.12,39.36493433]
[1770036722515,3.0141233,103.16,103.12,30.62813433]
[1770036724017,3.0141233,103.17,103.12,30.62813433]
[1770036724512,33.66073085,103.16,103.11,8.7372]
[1770036724719,3.0141233,103.12,103.08,30.62813433]
[1770036725020,3.0141233,103.1,103.06,30.62813433]
[1770036725215,3.0141233,103.09,103.06,30.62813433]
[1770036726518,8.7377,103.11,103.06,30.62813433]
[1770036727324,38.18105287,103.12,103.06,30.62813433]
[1770036728426,46.91785287,103.12,103.06,30.62813433]
[1770036731828,30.87159533,103.09,103.04,29.68832197]
[1770036733328,39.61109533,103.09,103.04,29.68832197]
[1770036733627,30.87159533,103.09,103.02,29.68832197]
[1770036733829,30.87159533,103.08,103.02,29.68832197]
[1770036734327,39.61199533,103.08,103.02,38.43342197]
[1770036734729,39.61199533,103.08,103.02,29.68832197]
[1770036735028,8.7411,103.07,103.02,29.68832197]
[1770036735431,38.40911382,103.06,102.98,29.68832197]
[1770036735624,396.42911382,103.06,102.99,29.68832197]
[1770036736828,405.17111382,103.06,102.99,38.43562197]
[1770036737531,358.02,103.06,103.0,38.43432197]
[1770036737728,358.02,103.06,103.01,29.68832197]
[1770036737929,417.95159533,103.08,103.01,29.68832197]
[1770036738131,394.61751849,103.09,103.03,29.68832197]
[1770036738326,425.48911382,103.09,103.03,29.68832197]
[1770036738631,387.08,103.09,103.03,29.68832197]
[1770036739329,38.40911382,103.11,103.03,29.68832197]
[1770036739529,401.44911382,103.11,103.03,29.68832197]
[1770036740330,434.26611382,103.11,103.04,38.43102197]
[1770036741425,39.60929533,103.1,103.04,29.68832197]
[1770036742833,39.60929533,103.1,103.04,38.43092197]
[1770036743132,30.87159533,103.1,103.04,38.43092197]
[1770036745030,387.12,103.11,103.05,29.68832197]
[1770036745334,38.40911382,103.13,103.05,29.68832197]
[1770036745734,30.87159533,103.15,103.08,29.68832197]
[1770036746123,38.40911382,103.17,103.09,29.68832197]
[1770036746430,334.92,103.16,103.09,29.68832197]
[1770036746832,425.52911382,103.17,103.1,38.42592197]
[1770036747537,30.87159533,103.15,103.1,29.68832197]
[1770036747835,30.87159533,103.15,103.09,29.68832197]
[1770036749538,39.60499533,103.15,103.09,29.68832197]
[1770036750229,39.60499533,103.15,103.09,38.42682197]
[1770036752132,30.87159533,103.15,103.09,38.42682197]
[1770036752337,30.87159533,103.15,103.1,29.68832197]
[1770036753542,39.60509533,103.15,103.1,29.68832197]
[1770036754140,8.7326,103.16,103.1,38.42582197]
[1770036754845,39.60419533,103.16,103.1,38.42582197]
[1770036755145,39.60419533,103.16,103.1,29.68832197]
[1770036755338,39.60499533,103.15,103.1,29.68832197]
[1770036761044,30.87159533,103.15,103.1,38.42582197]
[1770036762146,39.60509533,103.15,103.1,29.68832197]
[1770036765251,30.92535863,103.14,103.09,8.7384]
[1770036765550,30.92535863,103.14,103.09,39.64806108]
[1770036766654,8.7335,103.15,103.1,30.90966108]
[1770036766950,39.65885863,103.15,103.1,30.90966108]
[1770036768145,8.7343,103.14,103.1,30.90966108]
[1770036768444,3.0111948,103.14,103.1,30.90966108]
[1770036770753,42.66995343,103.15,103.1,30.90966108]
[1770036771351,398.6837948,103.16,103.11,32.25158818]
[1770036771543,395.6726,103.16,103.11,32.25158818]
[1770036772545,430.77781464,103.16,103.11,32.25158818]
[1770036772750,11.7446948,103.15,103.11,32.25158818]
[1770036773247,3.0111948,103.15,103.11,32.25158818]
[1770036773950,422.04521464,103.16,103.11,32.25158818]
[1770036774349,430.77791464,103.16,103.11,32.25158818]
[1770036774651,422.04521464,103.16,103.11,40.98808818]
[1770036775456,430.77781464,103.16,103.11,40.98808818]
[1770036775751,3.0111948,103.15,103.11,32.25158818]
[1770036778958,3.0111948,103.17,103.12,32.25158818]
[1770036779150,35.10521464,103.18,103.12,32.25158818]
[1770036779657,35.10521464,103.18,103.12,40.98678818]
[1770036780256,262.3511948,103.19,103.13,8.7343]
[1770036780459,262.3511948,103.19,103.14,32.25158818]
[1770036781259,262.3511948,103.19,103.14,40.98568818]
[1770036781453,262.3511948,103.19,103.14,32.25158818]
[1770036781661,3.0111948,103.18,103.14,32.25158818]
[1770036782259,3.0111948,103.19,103.14,32.25158818]
[1770036783356,3.0111948,103.18,103.14,32.25158818]
[1770036785657,3.0111948,103.19,103.14,32.25158818]
[1770036786757,3.0111948,103.19,103.14,40.98578818]
[1770036788661,3.0111948,103.17,103.12,58.8678139]
[1770036788966,31.49564246,103.18,103.13,32.09081696]
[1770036789167,3.0111948,103.17,103.13,32.09081696]
[1770036789866,3.0111948,103.18,103.13,32.09081696]
[1770036790066,3.0111948,103.19,103.14,32.09081696]
[1770036791067,40.22554246,103.2,103.14,32.09081696]
[1770036791265,3.0111948,103.18,103.14,32.09081696]
[1770036791470,3.0111948,103.19,103.15,32.09081696]
[1770036792471,3.0111948,103.17,103.13,32.09081696]
[1770036792764,3.0111948,103.16,103.13,32.09081696]
[1770036793367,3.0111948,103.17,103.13,32.09081696]
[1770036794469,3.00968041,103.16,103.13,32.09081696]
[1770036794660,3.00968041,103.17,103.13,32.09081696]
[1770036795469,3.00968041,103.15,103.11,32.09081696]
[1770036796065,3.00968041,103.17,103.11,32.09081696]
[1770036796562,391.93564246,103.18,103.13,32.09081696]
[1770036796563,3.00968041,103.18,103.13,32.09081696]
[1770036797468,3.00968041,103.18,103.13,40.82581696]
[1770036797664,3.00968041,103.17,103.13,40.82581696]
[1770036799771,3.00968041,103.16,103.13,32.09081696]
[1770036801570,60.62564246,103.24,103.16,8.7325]
[1770036801777,3.00968041,103.23,103.17,32.09081696]
[1770036802373,3.00968041,103.21,103.17,32.09081696]
[1770036802569,3.00968041,103.19,103.15,32.09081696]
[1770036802874,3.00968041,103.17,103.15,32.09081696]
[1770036803078,3.00968041,103.18,103.15,32.09081696]
[1770036805080,3.00968041,103.2,103.15,32.09081696]
[1770036805374,3.00968041,103.22,103.15,32.09081696]
[1770036805579,3.00968041,103.22,103.16,32.09081696]
[1770036805769,3.00968041,103.22,103.16,40.82311696]
[1770036805970,3.00968041,103.22,103.17,32.09081696]
[1770036806177,3.00968041,103.23,103.17,32.09081696]
[1770036806376,3.00968041,103.23,103.17,40.82231696]
[1770036806574,3.00968041,103.23,103.18,32.09081696]
[1770036807677,40.22124246,103.25,103.17,8.7315]
[1770036807678,426.99954246,103.27,103.19,32.09081696]
[1770036807983,3.00968041,103.26,103.2,32.09081696]
[1770036808180,3.00968041,103.25,103.2,32.09081696]
[1770036808580,3.00968041,103.24,103.2,32.09081696]
[1770036808777,3.00968041,103.25,103.2,32.09081696]
[1770036808979,3.00968041,103.26,103.2,32.09081696]
[1770036809183,31.49564246,103.27,103.2,32.09081696]
[1770036809477,3.00968041,103.25,103.2,32.09081696]
[1770036810280,3.00968041,103.24,103.2,32.09081696]
[1770036810684,3.00968041,103.25,103.2,32.09081696]
[1770036814584,40.22024246,103.26,103.2,32.09081696]
[1770036814783,3.00968041,103.25,103.2,32.09081696]
[1770036814982,3.00968041,103.25,103.2,40.81971696]
[1770036815179,3.00968041,103.25,103.21,32.09081696]
[1770036815486,3.00968041,103.23,103.18,32.09081696]
[1770036815685,3.00968041,103.23,103.19,32.09081696]
[1770036816285,31.49564246,103.24,103.19,32.09081696]
[1770036816286,34.50532287,103.24,103.19,32.09081696]
[1770036816485,3.00968041,103.24,103.19,32.09081696]
[1770036816688,3.00968041,103.24,103.19,40.82081696]
[1770036816883,3.00968041,103.24,103.2,32.09081696]
[1770036817485,3.00968041,103.25,103.2,32.09081696]
[1770036818391,3.00968041,103.24,103.2,32.09081696]
[1770036818980,3.00968041,103.22,103.2,32.09081696]
[1770036819186,3.00968041,103.23,103.18,29.70481553]
[1770036819786,3.00968041,103.2,103.16,29.70481553]
[1770036820092,3.00968041,103.19,103.16,29.70481553]
[1770036820288,3.00968041,103.2,103.16,29.70481553]
[1770036821989,3.00968041,103.19,103.16,29.70481553]
[1770036822593,3.00968041,103.19,103.14,399.45484325]
[1770036822796,3.00968041,103.18,103.14,399.45484325]
[1770036823388,3.00968041,103.19,103.14,408.18904325]
[1770036823594,3.00968041,103.19,103.15,29.70481553]
[1770036824797,3.00968041,103.17,103.14,369.75002772]
[1770036825197,3.00968041,103.17,103.14,399.45484325]
[1770036825406,3.00968041,103.19,103.15,29.70481553]
[1770036825798,3.00968041,103.18,103.15,29.70481553]
[1770036827508,3.00968041,103.19,103.15,29.70481553]
[1770036827705,3.00968041,103.19,103.15,38.43811553]
[1770036828506,33.83516528,103.2,103.15,38.43811553]
[1770036828903,3.00968041,103.2,103.16,32.51844289]
[1770036829098,11.73818041,103.21,103.16,32.51844289]
[1770036829808,3.00968041,103.2,103.16,32.51844289]
[1770036831113,3.00968041,103.22,103.17,32.51844289]
[1770036831306,3.00968041,103.23,103.17,32.51844289]
[1770036831503,386.66,103.24,103.19,32.51844289]
[1770036831714,389.66968041,103.24,103.19,32.51844289]
[1770036832009,11.73528041,103.25,103.19,32.51844289]
[1770036832408,3.00968041,103.24,103.19,32.51844289]
[1770036833312,3.00968041,103.24,103.2,32.51844289]
[1770036835209,3.00968041,103.23,103.2,32.51844289]
[1770036835409,3.00968041,103.23,103.18,41.24924289]
[1770036835608,3.00968041,103.23,103.19,32.51844289]
[1770036836007,3.00968041,103.22,103.19,32.51844289]
[1770036836609,3.00968041,103.23,103.19,32.51844289]
[1770036838112,3.00968041,103.24,103.19,41.24834289]
[1770036838315,3.00968041,103.24,103.2,32.51844289]
[1770036839205,3.00968041,103.23,103.18,41.24924289]
[1770036839709,3.00968041,103.22,103.18,32.51844289]
[1770036840413,3.00968041,103.23,103.18,32.51844289]
[1770036840803,39.58818945,103.24,103.19,32.51844289]
[1770036841008,3.00968041,103.23,103.19,32.51844289]
[1770036842114,3.00968041,103.21,103.17,32.51844289]
[1770036843008,33.87196986,103.23,103.17,32.51844289]
[1770036843208,30.86228945,103.23,103.19,3.00968041]
[1770036844710,30.86228945,103.25,103.19,3.00968041]
[1770036844910,8.7267,103.23,103.19,3.00968041]
[1770036845715,8.7267,103.23,103.18,35.5281233]
[1770036848815,8.7267,103.23,103.18,44.2589233]
[1770036849118,8.7267,103.23,103.19,35.43693458]
[1770036849512,31.78354267,103.26,103.21,3.00968041]
[1770036849717,138.69398041,103.28,103.22,35.43693458]
[1770036849718,31.78354267,103.28,103.22,35.43693458]
[1770036849911,31.78354267,103.28,103.19,153.84129694]
[1770036849912,31.78354267,103.28,103.23,35.43693458]
[1770036850113,31.78354267,103.28,103.24,3.00968041]
[1770036850521,31.78354267,103.28,103.23,3.00968041]
[1770036850718,31.78354267,103.28,103.22,35.43693458]
[1770036851018,31.78354267,103.27,103.22,35.43693458]
[1770036852322,31.78354267,103.27,103.23,3.00968041]
[1770036852515,522.2906,103.29,103.23,3.00968041]
[1770036852721,554.07414267,103.29,103.23,35.43693458]
[1770036853222,167.45414267,103.29,103.23,35.43693458]
[1770036853422,8.7232,103.28,103.23,35.43693458]
[1770036853722,8.7232,103.28,103.24,3.00968041]
[1770036854523,8.7232,103.28,103.24,3.00219774]
[1770036854923,40.50514267,103.29,103.24,35.42945191]
[1770036855125,40.50514267,103.29,103.25,3.00219774]
[1770036855322,40.50514267,103.29,103.24,35.42945191]
[1770036855826,8.7216,103.29,103.25,3.00219774]
[1770036856025,8.7216,103.29,103.24,35.42945191]
[1770036858223,31.78354267,103.3,103.24,35.42945191]
[1770036858428,386.56,103.31,103.26,3.00219774]
[1770036858925,418.34354267,103.31,103.26,3.00219774]
[1770036859425,8.7209,103.3,103.26,3.00219774]
[1770036860820,8.7209,103.3,103.26,35.42945191]
[1770036864228,395.1798,103.32,103.27,35.42945191]
[1770036864428,31.78354267,103.33,103.28,35.42945191]
[1770036864930,40.50184267,103.33,103.28,35.42945191]
[1770036865130,40.50184267,103.33,103.29,3.00219774]
[1770036865525,8.7183,103.33,103.29,35.42945191]
[1770036866125,40.50084267,103.35,103.29,35.42945191]
[1770036866335,8.7173,103.35,103.32,3.00219774]
[1770036866529,418.22354267,103.37,103.32,3.00219774]
[1770036867032,31.78354267,103.36,103.31,3.00219774]
[1770036867333,31.78354267,103.36,103.32,3.00219774]
[1770036868232,31.78354267,103.36,103.31,35.42945191]
[1770036868432,426.91924267,103.36,103.31,35.42945191]
[1770036868627,418.20354267,103.36,103.31,35.42945191]
[1770036868932,418.18354267,103.36,103.31,32.42725417]
[1770036869231,31.78354267,103.36,103.31,35.42945191]
[1770036869433,418.18354267,103.36,103.32,3.00219774]
[1770036870431,426.89934267,103.36,103.32,3.00219774]
[1770036870727,418.18354267,103.36,103.31,35.42945191]
[1770036871331,418.14354267,103.36,103.31,32.42725417]
[1770036872328,8.7166,103.35,103.31,32.42725417]
[1770036873936,31.78354267,103.34,103.29,32.42725417]
[1770036874427,34.78574041,103.34,103.29,32.42725417]
[1770036874932,398.01879774,103.35,103.29,41.14875417]
[1770036875332,11.71879774,103.35,103.3,32.42725417]
[1770036876334,43.50234041,103.35,103.3,32.42725417]
[1770036876736,3.00219774,103.34,103.3,32.42725417]
[1770036881537,3.00219774,103.33,103.3,32.42725417]
[1770036882739,3.00219774,103.32,103.28,39.46322769]
[1770036884239,40.8905345,103.34,103.29,30.74122769]
[1770036884442,3.00219774,103.33,103.29,30.74122769]
[1770036885144,3.00219774,103.33,103.29,39.46272769]
[1770036885841,3.00219774,103.34,103.3,30.74122769]
[1770036886633,3.00219774,103.33,103.3,30.74122769]
[1770036887340,3.00219774,103.32,103.28,39.46352769]
[1770036887542,3.00219774,103.33,103.29,30.74122769]
[1770036888142,43.89263224,103.34,103.29,30.74122769]
[1770036888332,3.00219774,103.33,103.29,39.46272769]
[1770036888537,3.00219774,103.32,103.29,30.74122769]
[1770036888742,32.1730345,103.34,103.29,30.74122769]
[1770036888952,3.00219774,103.33,103.29,30.74122769]
[1770036891441,3.00219774,103.33,103.3,32.34111067]
[1770036895739,8.7174,103.34,103.3,32.34111067]
[1770036895945,3.00219774,103.32,103.3,32.34111067]
[1770036896348,3.00219774,103.33,103.3,32.34111067]
[1770036896947,3.00219774,103.32,103.3,32.34111067]
[1770036897143,3.00219774,103.33,103.3,32.34111067]
[1770036900052,39.88938554,103.38,103.32,32.34111067]
[1770036900254,3.00219774,103.36,103.32,32.34111067]